Workbook

Sheet Trouwbudget
B2: KAYLA + JACOB GAAN TROUWEN
B5: CATEGORIE | C5: GESCHATTE KOSTEN | D5: WERKELIJKE KOSTEN | E5: VERSCHIL | F5: % VAN BUDGET | J5: Niet gesorteerd | K5: Geschatte kosten | L5: Werkelijke kosten | M5: Geschatte kosten - rangwaarde | N5: Rang | O5: # | P5: Gesorteerd
B6: =P6 -> Receptie | C6: =VLOOKUP(TBL_Summary[[#This Row],[CATEGORIE]],TBL_RankingData,2,FALSE) -> € 14,500 | D6: =IF(VLOOKUP(TBL_Summary[[#This Row],[CATEGORIE]],TBL_RankingData,3,FALSE)=0,"",VLOOKUP(TBL_Summary[[#This Row],[CATEGORIE]],TBL_RankingData,3,FALSE)) -> € 12,800 | E6: =IF(OR(TBL_Summary[[#This Row],[GESCHATTE KOSTEN]]="",TBL_Summary[[#This Row],[WERKELIJKE KOSTEN]]=""),"",TBL_Summary[[#This Row],[GESCHATTE KOSTEN]]-TBL_Summary[[#This Row],[WERKELIJKE KOSTEN]]) -> € 1,700 | F6: =TBL_Summary[[#This Row],[GESCHATTE KOSTEN]]/SUM(TBL_Summary[GESCHATTE KOSTEN]) -> 48.7% | J6: Receptie | K6: =TBL_Reception[[#Totals],[GESCHAT]] -> 14500 | L6: =TBL_Reception[[#Totals],[WERKELIJK]] -> 12800 | M6: =K6-O6/100 -> 14499.99 | N6: =_xlfn.RANK.AVG(M6,$M$6:$M$15) -> 1 | O6: 1 | P6: =INDEX(TBL_RankingData,MATCH(O6,$N$6:$N$15,0),1) -> Receptie
B7: =P7 -> Kleding | C7: =VLOOKUP(TBL_Summary[[#This Row],[CATEGORIE]],TBL_RankingData,2,FALSE) -> € 4,000 | D7: =IF(VLOOKUP(TBL_Summary[[#This Row],[CATEGORIE]],TBL_RankingData,3,FALSE)=0,"",VLOOKUP(TBL_Summary[[#This Row],[CATEGORIE]],TBL_RankingData,3,FALSE)) -> € 2,900 | E7: =IF(OR(TBL_Summary[[#This Row],[GESCHATTE KOSTEN]]="",TBL_Summary[[#This Row],[WERKELIJKE KOSTEN]]=""),"",TBL_Summary[[#This Row],[GESCHATTE KOSTEN]]-TBL_Summary[[#This Row],[WERKELIJKE KOSTEN]]) -> € 1,100 | F7: =TBL_Summary[[#This Row],[GESCHATTE KOSTEN]]/SUM(TBL_Summary[GESCHATTE KOSTEN]) -> 13.4% | J7: Kleding | K7: =TBL_Attire[[#Totals],[GESCHAT]] -> 4000 | L7: =TBL_Attire[[#Totals],[WERKELIJK]] -> 2900 | M7: =K7-O7/100 -> 3999.98 | N7: 2 | O7: 2 | P7: Kleding
B8: Bloemen en versieringen | C8: =VLOOKUP(TBL_Summary[[#This Row],[CATEGORIE]],TBL_RankingData,2,FALSE) -> € 3,000 | D8: =IF(VLOOKUP(TBL_Summary[[#This Row],[CATEGORIE]],TBL_RankingData,3,FALSE)=0,"",VLOOKUP(TBL_Summary[[#This Row],[CATEGORIE]],TBL_RankingData,3,FALSE)) ->  | E8: =IF(OR(TBL_Summary[[#This Row],[GESCHATTE KOSTEN]]="",TBL_Summary[[#This Row],[WERKELIJKE KOSTEN]]=""),"",TBL_Summary[[#This Row],[GESCHATTE KOSTEN]]-TBL_Summary[[#This Row],[WERKELIJKE KOSTEN]]) ->  | F8: =TBL_Summary[[#This Row],[GESCHATTE KOSTEN]]/SUM(TBL_Summary[GESCHATTE KOSTEN]) -> 10.1% | J8: Bloemen en versieringen | K8: =TBL_FlowersAndDecor[[#Totals],[GESCHAT]] -> 3000 | L8: =TBL_FlowersAndDecor[[#Totals],[WERKELIJK]] -> 0 | M8: 2999.97 | N8: 3 | O8: 3 | P8: Bloemen en versieringen
B9: Foto- en video-opnamen | C9: =VLOOKUP(TBL_Summary[[#This Row],[CATEGORIE]],TBL_RankingData,2,FALSE) -> € 2,500 | D9: =IF(VLOOKUP(TBL_Summary[[#This Row],[CATEGORIE]],TBL_RankingData,3,FALSE)=0,"",VLOOKUP(TBL_Summary[[#This Row],[CATEGORIE]],TBL_RankingData,3,FALSE)) ->  | E9: =IF(OR(TBL_Summary[[#This Row],[GESCHATTE KOSTEN]]="",TBL_Summary[[#This Row],[WERKELIJKE KOSTEN]]=""),"",TBL_Summary[[#This Row],[GESCHATTE KOSTEN]]-TBL_Summary[[#This Row],[WERKELIJKE KOSTEN]]) ->  | F9: =TBL_Summary[[#This Row],[GESCHATTE KOSTEN]]/SUM(TBL_Summary[GESCHATTE KOSTEN]) -> 8.4% | J9: Muziek | K9: =TBL_Music[[#Totals],[GESCHAT]] -> 1800 | L9: =TBL_Music[[#Totals],[WERKELIJK]] -> 0 | M9: 1799.96 | N9: 5 | O9: 4 | P9: Foto- en video-opnamen
B10: Muziek | C10: =VLOOKUP(TBL_Summary[[#This Row],[CATEGORIE]],TBL_RankingData,2,FALSE) -> € 1,800 | D10: =IF(VLOOKUP(TBL_Summary[[#This Row],[CATEGORIE]],TBL_RankingData,3,FALSE)=0,"",VLOOKUP(TBL_Summary[[#This Row],[CATEGORIE]],TBL_RankingData,3,FALSE)) ->  | E10: =IF(OR(TBL_Summary[[#This Row],[GESCHATTE KOSTEN]]="",TBL_Summary[[#This Row],[WERKELIJKE KOSTEN]]=""),"",TBL_Summary[[#This Row],[GESCHATTE KOSTEN]]-TBL_Summary[[#This Row],[WERKELIJKE KOSTEN]]) ->  | F10: =TBL_Summary[[#This Row],[GESCHATTE KOSTEN]]/SUM(TBL_Summary[GESCHATTE KOSTEN]) -> 6.1% | J10: Foto- en video-opnamen | K10: =TBL_PhotographsAndVideo[[#Totals],[GESCHAT]] -> 2500 | L10: =TBL_PhotographsAndVideo[[#Totals],[WERKELIJK]] -> 0 | M10: 2499.95 | N10: 4 | O10: 5 | P10: Muziek
B11: Aandenkens en cadeaus | C11: =VLOOKUP(TBL_Summary[[#This Row],[CATEGORIE]],TBL_RankingData,2,FALSE) -> € 1,100 | D11: =IF(VLOOKUP(TBL_Summary[[#This Row],[CATEGORIE]],TBL_RankingData,3,FALSE)=0,"",VLOOKUP(TBL_Summary[[#This Row],[CATEGORIE]],TBL_RankingData,3,FALSE)) ->  | E11: =IF(OR(TBL_Summary[[#This Row],[GESCHATTE KOSTEN]]="",TBL_Summary[[#This Row],[WERKELIJKE KOSTEN]]=""),"",TBL_Summary[[#This Row],[GESCHATTE KOSTEN]]-TBL_Summary[[#This Row],[WERKELIJKE KOSTEN]]) ->  | F11: =TBL_Summary[[#This Row],[GESCHATTE KOSTEN]]/SUM(TBL_Summary[GESCHATTE KOSTEN]) -> 3.7% | J11: Aandenkens en cadeaus | K11: =TBL_FavorsAndGifts[[#Totals],[GESCHAT]] -> 1100 | L11: =TBL_FavorsAndGifts[[#Totals],[WERKELIJK]] -> 0 | M11: 1099.94 | N11: 6 | O11: 6 | P11: Aandenkens en cadeaus
B12: =P12 -> Trouwringen | C12: =VLOOKUP(TBL_Summary[[#This Row],[CATEGORIE]],TBL_RankingData,2,FALSE) -> € 1,100 | D12: =IF(VLOOKUP(TBL_Summary[[#This Row],[CATEGORIE]],TBL_RankingData,3,FALSE)=0,"",VLOOKUP(TBL_Summary[[#This Row],[CATEGORIE]],TBL_RankingData,3,FALSE)) ->  | E12: =IF(OR(TBL_Summary[[#This Row],[GESCHATTE KOSTEN]]="",TBL_Summary[[#This Row],[WERKELIJKE KOSTEN]]=""),"",TBL_Summary[[#This Row],[GESCHATTE KOSTEN]]-TBL_Summary[[#This Row],[WERKELIJKE KOSTEN]]) ->  | F12: =TBL_Summary[[#This Row],[GESCHATTE KOSTEN]]/SUM(TBL_Summary[GESCHATTE KOSTEN]) -> 3.7% | J12: Ceremonie | K12: =TBL_Ceremony[[#Totals],[GESCHAT]] -> 800 | L12: =TBL_Ceremony[[#Totals],[WERKELIJK]] -> 0 | M12: 799.93 | N12: 8 | O12: 7 | P12: Trouwringen
B13: =P13 -> Ceremonie | C13: =VLOOKUP(TBL_Summary[[#This Row],[CATEGORIE]],TBL_RankingData,2,FALSE) -> € 800 | D13: =IF(VLOOKUP(TBL_Summary[[#This Row],[CATEGORIE]],TBL_RankingData,3,FALSE)=0,"",VLOOKUP(TBL_Summary[[#This Row],[CATEGORIE]],TBL_RankingData,3,FALSE)) ->  | E13: =IF(OR(TBL_Summary[[#This Row],[GESCHATTE KOSTEN]]="",TBL_Summary[[#This Row],[WERKELIJKE KOSTEN]]=""),"",TBL_Summary[[#This Row],[GESCHATTE KOSTEN]]-TBL_Summary[[#This Row],[WERKELIJKE KOSTEN]]) ->  | F13: =TBL_Summary[[#This Row],[GESCHATTE KOSTEN]]/SUM(TBL_Summary[GESCHATTE KOSTEN]) -> 2.7% | J13: Uitnodigingen | K13: =TBL_Stationery[[#Totals],[GESCHAT]] -> 500 | L13: =TBL_Stationery[[#Totals],[WERKELIJK]] -> 0 | M13: 499.92 | N13: 9 | O13: 8 | P13: Ceremonie
B14: =P14 -> Uitnodigingen | C14: =VLOOKUP(TBL_Summary[[#This Row],[CATEGORIE]],TBL_RankingData,2,FALSE) -> € 500 | D14: =IF(VLOOKUP(TBL_Summary[[#This Row],[CATEGORIE]],TBL_RankingData,3,FALSE)=0,"",VLOOKUP(TBL_Summary[[#This Row],[CATEGORIE]],TBL_RankingData,3,FALSE)) ->  | E14: =IF(OR(TBL_Summary[[#This Row],[GESCHATTE KOSTEN]]="",TBL_Summary[[#This Row],[WERKELIJKE KOSTEN]]=""),"",TBL_Summary[[#This Row],[GESCHATTE KOSTEN]]-TBL_Summary[[#This Row],[WERKELIJKE KOSTEN]]) ->  | F14: =TBL_Summary[[#This Row],[GESCHATTE KOSTEN]]/SUM(TBL_Summary[GESCHATTE KOSTEN]) -> 1.7% | J14: Trouwringen | K14: =TBL_WeddingRings[[#Totals],[GESCHAT]] -> 1100 | L14: =TBL_WeddingRings[[#Totals],[WERKELIJK]] -> 0 | M14: 1099.91 | N14: 7 | O14: 9 | P14: Uitnodigingen
B15: =P15 -> Vervoer | C15: =VLOOKUP(TBL_Summary[[#This Row],[CATEGORIE]],TBL_RankingData,2,FALSE) -> € 450 | D15: =IF(VLOOKUP(TBL_Summary[[#This Row],[CATEGORIE]],TBL_RankingData,3,FALSE)=0,"",VLOOKUP(TBL_Summary[[#This Row],[CATEGORIE]],TBL_RankingData,3,FALSE)) ->  | E15: =IF(OR(TBL_Summary[[#This Row],[GESCHATTE KOSTEN]]="",TBL_Summary[[#This Row],[WERKELIJKE KOSTEN]]=""),"",TBL_Summary[[#This Row],[GESCHATTE KOSTEN]]-TBL_Summary[[#This Row],[WERKELIJKE KOSTEN]]) ->  | F15: =TBL_Summary[[#This Row],[GESCHATTE KOSTEN]]/SUM(TBL_Summary[GESCHATTE KOSTEN]) -> 1.5% | J15: Vervoer | K15: =TBL_Transportation[[#Totals],[GESCHAT]] -> 450 | L15: =TBL_Transportation[[#Totals],[WERKELIJK]] -> 0 | M15: 449.9 | N15: 10 | O15: 10 | P15: Vervoer
B16: Totaal | C16: =SUBTOTAL(109,TBL_Summary[GESCHATTE KOSTEN]) -> € 29,750 | D16: =SUBTOTAL(109,TBL_Summary[WERKELIJKE KOSTEN]) -> € 15,700 | E16: =TBL_Summary[[#Totals],[GESCHATTE KOSTEN]]-TBL_Summary[[#Totals],[WERKELIJKE KOSTEN]] -> € 14,050 | F16: =SUBTOTAL(109,TBL_Summary[% VAN BUDGET]) -> 100%

Sheet Budgetgegevens
B2: BUDGETGEGEVENS
B4: RECEPTIE | C4: GESCHAT | D4: WERKELIJK | E4: VERSCHIL
B5: Locaties en huur | C5: € 8,000.00 | D5: € 7,800.00 | E5: =IF(OR(TBL_Reception[[#This Row],[GESCHAT]]="",TBL_Reception[[#This Row],[WERKELIJK]]=""),"",TBL_Reception[[#This Row],[GESCHAT]]-TBL_Reception[[#This Row],[WERKELIJK]]) -> € 200.00
B6: Eten en dienstverlening | C6: € 4,000.00 | D6: € 4,200.00 | E6: =IF(OR(TBL_Reception[[#This Row],[GESCHAT]]="",TBL_Reception[[#This Row],[WERKELIJK]]=""),"",TBL_Reception[[#This Row],[GESCHAT]]-TBL_Reception[[#This Row],[WERKELIJK]]) -> € -200.00
B7: Dranken | C7: € 1,000.00 | D7: € 800.00 | E7: =IF(OR(TBL_Reception[[#This Row],[GESCHAT]]="",TBL_Reception[[#This Row],[WERKELIJK]]=""),"",TBL_Reception[[#This Row],[GESCHAT]]-TBL_Reception[[#This Row],[WERKELIJK]]) -> € 200.00
B8: Taart | C8: € 1,000.00 | E8: =IF(OR(TBL_Reception[[#This Row],[GESCHAT]]="",TBL_Reception[[#This Row],[WERKELIJK]]=""),"",TBL_Reception[[#This Row],[GESCHAT]]-TBL_Reception[[#This Row],[WERKELIJK]]) -> 
B9: Diverse kosten | C9: € 500.00 | E9: =IF(OR(TBL_Reception[[#This Row],[GESCHAT]]="",TBL_Reception[[#This Row],[WERKELIJK]]=""),"",TBL_Reception[[#This Row],[GESCHAT]]-TBL_Reception[[#This Row],[WERKELIJK]]) -> 
B10: TOTAAL RECEPTIE | C10: =SUBTOTAL(109,TBL_Reception[GESCHAT]) -> € 14,500.00 | D10: =SUBTOTAL(109,TBL_Reception[WERKELIJK]) -> € 12,800.00 | E10: =TBL_Reception[[#Totals],[GESCHAT]]-TBL_Reception[[#Totals],[WERKELIJK]] -> € 1,700.00
B13: KLEDING | C13: GESCHAT | D13: WERKELIJK | E13: VERSCHIL
B14: Smoking, pak en/of jurken | C14: € 3,000.00 | D14: € 2,900.00 | E14: =IF(OR(TBL_Attire[[#This Row],[GESCHAT]]="",TBL_Attire[[#This Row],[WERKELIJK]]=""),"",TBL_Attire[[#This Row],[GESCHAT]]-TBL_Attire[[#This Row],[WERKELIJK]]) -> € 100.00
B15: Vermaken | C15: € 100.00 | E15: =IF(OR(TBL_Attire[[#This Row],[GESCHAT]]="",TBL_Attire[[#This Row],[WERKELIJK]]=""),"",TBL_Attire[[#This Row],[GESCHAT]]-TBL_Attire[[#This Row],[WERKELIJK]]) -> 
B16: Hoofddeksel en sluier | C16: € 200.00 | E16: =IF(OR(TBL_Attire[[#This Row],[GESCHAT]]="",TBL_Attire[[#This Row],[WERKELIJK]]=""),"",TBL_Attire[[#This Row],[GESCHAT]]-TBL_Attire[[#This Row],[WERKELIJK]]) -> 
B17: Accessoires | C17: € 100.00 | E17: =IF(OR(TBL_Attire[[#This Row],[GESCHAT]]="",TBL_Attire[[#This Row],[WERKELIJK]]=""),"",TBL_Attire[[#This Row],[GESCHAT]]-TBL_Attire[[#This Row],[WERKELIJK]]) -> 
B18: Haar en make-up | C18: € 500.00 | E18: =IF(OR(TBL_Attire[[#This Row],[GESCHAT]]="",TBL_Attire[[#This Row],[WERKELIJK]]=""),"",TBL_Attire[[#This Row],[GESCHAT]]-TBL_Attire[[#This Row],[WERKELIJK]]) -> 
B19: Diverse kosten | C19: € 100.00 | E19: =IF(OR(TBL_Attire[[#This Row],[GESCHAT]]="",TBL_Attire[[#This Row],[WERKELIJK]]=""),"",TBL_Attire[[#This Row],[GESCHAT]]-TBL_Attire[[#This Row],[WERKELIJK]]) -> 
B20: TOTAAL KLEDING | C20: =SUBTOTAL(109,TBL_Attire[GESCHAT]) -> € 4,000.00 | D20: =SUBTOTAL(109,TBL_Attire[WERKELIJK]) -> € 2,900.00 | E20: =TBL_Attire[[#Totals],[GESCHAT]]-TBL_Attire[[#Totals],[WERKELIJK]] -> € 1,100.00
B23: BLOEMEN EN VERSIERINGEN | C23: GESCHAT | D23: WERKELIJK | E23: VERSCHIL
B24: Bloemstukken voor ceremonie | C24: € 1,000.00 | E24: =IF(OR(TBL_FlowersAndDecor[[#This Row],[GESCHAT]]="",TBL_FlowersAndDecor[[#This Row],[WERKELIJK]]=""),"",TBL_FlowersAndDecor[[#This Row],[GESCHAT]]-TBL_FlowersAndDecor[[#This Row],[WERKELIJK]]) -> 
B25: Bloemblaadjes en mand bloemenmeisje | C25: € 500.00 | E25: =IF(OR(TBL_FlowersAndDecor[[#This Row],[GESCHAT]]="",TBL_FlowersAndDecor[[#This Row],[WERKELIJK]]=""),"",TBL_FlowersAndDecor[[#This Row],[GESCHAT]]-TBL_FlowersAndDecor[[#This Row],[WERKELIJK]]) -> 
B26: Ringkussen | C26: € 100.00 | E26: =IF(OR(TBL_FlowersAndDecor[[#This Row],[GESCHAT]]="",TBL_FlowersAndDecor[[#This Row],[WERKELIJK]]=""),"",TBL_FlowersAndDecor[[#This Row],[GESCHAT]]-TBL_FlowersAndDecor[[#This Row],[WERKELIJK]]) -> 
B27: Boeketten | C27: € 500.00 | E27: =IF(OR(TBL_FlowersAndDecor[[#This Row],[GESCHAT]]="",TBL_FlowersAndDecor[[#This Row],[WERKELIJK]]=""),"",TBL_FlowersAndDecor[[#This Row],[GESCHAT]]-TBL_FlowersAndDecor[[#This Row],[WERKELIJK]]) -> 
B28: Boutonnières | C28: € 100.00 | E28: =IF(OR(TBL_FlowersAndDecor[[#This Row],[GESCHAT]]="",TBL_FlowersAndDecor[[#This Row],[WERKELIJK]]=""),"",TBL_FlowersAndDecor[[#This Row],[GESCHAT]]-TBL_FlowersAndDecor[[#This Row],[WERKELIJK]]) -> 
B29: Corsages | C29: € 200.00 | E29: =IF(OR(TBL_FlowersAndDecor[[#This Row],[GESCHAT]]="",TBL_FlowersAndDecor[[#This Row],[WERKELIJK]]=""),"",TBL_FlowersAndDecor[[#This Row],[GESCHAT]]-TBL_FlowersAndDecor[[#This Row],[WERKELIJK]]) -> 
B30: Versieringen receptie | C30: € 300.00 | E30: =IF(OR(TBL_FlowersAndDecor[[#This Row],[GESCHAT]]="",TBL_FlowersAndDecor[[#This Row],[WERKELIJK]]=""),"",TBL_FlowersAndDecor[[#This Row],[GESCHAT]]-TBL_FlowersAndDecor[[#This Row],[WERKELIJK]]) -> 
B31: Verlichting | C31: € 200.00 | E31: =IF(OR(TBL_FlowersAndDecor[[#This Row],[GESCHAT]]="",TBL_FlowersAndDecor[[#This Row],[WERKELIJK]]=""),"",TBL_FlowersAndDecor[[#This Row],[GESCHAT]]-TBL_FlowersAndDecor[[#This Row],[WERKELIJK]]) -> 
B32: Diverse kosten | C32: € 100.00 | E32: =IF(OR(TBL_FlowersAndDecor[[#This Row],[GESCHAT]]="",TBL_FlowersAndDecor[[#This Row],[WERKELIJK]]=""),"",TBL_FlowersAndDecor[[#This Row],[GESCHAT]]-TBL_FlowersAndDecor[[#This Row],[WERKELIJK]]) -> 
B33: TOTAAL BLOEMEN EN VERSIERINGEN | C33: =SUBTOTAL(109,TBL_FlowersAndDecor[GESCHAT]) -> € 3,000.00 | D33: =SUBTOTAL(109,TBL_FlowersAndDecor[WERKELIJK]) -> € 0.00 | E33: =TBL_FlowersAndDecor[[#Totals],[GESCHAT]]-TBL_FlowersAndDecor[[#Totals],[WERKELIJK]] -> € 3,000.00
B36: MUZIEK | C36: GESCHAT | D36: WERKELIJK | E36: VERSCHIL
B37: Muzikanten ceremonie | C37: € 700.00 | E37: =IF(OR(TBL_Music[[#This Row],[GESCHAT]]="",TBL_Music[[#This Row],[WERKELIJK]]=""),"",TBL_Music[[#This Row],[GESCHAT]]-TBL_Music[[#This Row],[WERKELIJK]]) -> 
B38: Muzikanten borrel | C38: € 300.00 | E38: =IF(OR(TBL_Music[[#This Row],[GESCHAT]]="",TBL_Music[[#This Row],[WERKELIJK]]=""),"",TBL_Music[[#This Row],[GESCHAT]]-TBL_Music[[#This Row],[WERKELIJK]]) -> 
B39: Band, dj of animatie receptie | C39: € 200.00 | E39: =IF(OR(TBL_Music[[#This Row],[GESCHAT]]="",TBL_Music[[#This Row],[WERKELIJK]]=""),"",TBL_Music[[#This Row],[GESCHAT]]-TBL_Music[[#This Row],[WERKELIJK]]) -> 
B40: Geluidssysteem of huur dansvloer | C40: € 400.00 | E40: =IF(OR(TBL_Music[[#This Row],[GESCHAT]]="",TBL_Music[[#This Row],[WERKELIJK]]=""),"",TBL_Music[[#This Row],[GESCHAT]]-TBL_Music[[#This Row],[WERKELIJK]]) -> 
B41: Diverse kosten | C41: € 200.00 | E41: =IF(OR(TBL_Music[[#This Row],[GESCHAT]]="",TBL_Music[[#This Row],[WERKELIJK]]=""),"",TBL_Music[[#This Row],[GESCHAT]]-TBL_Music[[#This Row],[WERKELIJK]]) -> 
B42: TOTAAL MUZIEK | C42: =SUBTOTAL(109,TBL_Music[GESCHAT]) -> € 1,800.00 | D42: =SUBTOTAL(109,TBL_Music[WERKELIJK]) -> € 0.00 | E42: =TBL_Music[[#Totals],[GESCHAT]]-TBL_Music[[#Totals],[WERKELIJK]] -> € 1,800.00
B45: FOTOGRAFIE EN VIDEO | C45: GESCHAT | D45: WERKELIJK | E45: VERSCHIL
B46: Fotografie | C46: € 1,000.00 | E46: =IF(OR(TBL_PhotographsAndVideo[[#This Row],[GESCHAT]]="",TBL_PhotographsAndVideo[[#This Row],[WERKELIJK]]=""),"",TBL_PhotographsAndVideo[[#This Row],[GESCHAT]]-TBL_PhotographsAndVideo[[#This Row],[WERKELIJK]]) -> 
B47: Video-opnamen | C47: € 800.00 | E47: =IF(OR(TBL_PhotographsAndVideo[[#This Row],[GESCHAT]]="",TBL_PhotographsAndVideo[[#This Row],[WERKELIJK]]=""),"",TBL_PhotographsAndVideo[[#This Row],[GESCHAT]]-TBL_PhotographsAndVideo[[#This Row],[WERKELIJK]]) -> 
B48: Aanvullende afdrukken en fotoalbums | C48: € 500.00 | E48: =IF(OR(TBL_PhotographsAndVideo[[#This Row],[GESCHAT]]="",TBL_PhotographsAndVideo[[#This Row],[WERKELIJK]]=""),"",TBL_PhotographsAndVideo[[#This Row],[GESCHAT]]-TBL_PhotographsAndVideo[[#This Row],[WERKELIJK]]) -> 
B49: Diverse kosten | C49: € 200.00 | E49: =IF(OR(TBL_PhotographsAndVideo[[#This Row],[GESCHAT]]="",TBL_PhotographsAndVideo[[#This Row],[WERKELIJK]]=""),"",TBL_PhotographsAndVideo[[#This Row],[GESCHAT]]-TBL_PhotographsAndVideo[[#This Row],[WERKELIJK]]) -> 
B50: TOTAAL FOTOGRAFIE EN VIDEO | C50: =SUBTOTAL(109,TBL_PhotographsAndVideo[GESCHAT]) -> € 2,500.00 | D50: =SUBTOTAL(109,TBL_PhotographsAndVideo[WERKELIJK]) -> € 0.00 | E50: =TBL_PhotographsAndVideo[[#Totals],[GESCHAT]]-TBL_PhotographsAndVideo[[#Totals],[WERKELIJK]] -> € 2,500.00
B53: AANDENKENS EN CADEAUS | C53: GESCHAT | D53: WERKELIJK | E53: VERSCHIL
B54: Welkomstcadeaus | C54: € 700.00 | E54: =IF(OR(TBL_FavorsAndGifts[[#This Row],[GESCHAT]]="",TBL_FavorsAndGifts[[#This Row],[WERKELIJK]]=""),"",TBL_FavorsAndGifts[[#This Row],[GESCHAT]]-TBL_FavorsAndGifts[[#This Row],[WERKELIJK]]) -> 
B55: Feestcadeaus | C55: € 200.00 | E55: =IF(OR(TBL_FavorsAndGifts[[#This Row],[GESCHAT]]="",TBL_FavorsAndGifts[[#This Row],[WERKELIJK]]=""),"",TBL_FavorsAndGifts[[#This Row],[GESCHAT]]-TBL_FavorsAndGifts[[#This Row],[WERKELIJK]]) -> 
B56: Diverse kosten | C56: € 200.00 | E56: =IF(OR(TBL_FavorsAndGifts[[#This Row],[GESCHAT]]="",TBL_FavorsAndGifts[[#This Row],[WERKELIJK]]=""),"",TBL_FavorsAndGifts[[#This Row],[GESCHAT]]-TBL_FavorsAndGifts[[#This Row],[WERKELIJK]]) -> 
B57: TOTAAL AANDENKENS EN CADEAUS | C57: =SUBTOTAL(109,TBL_FavorsAndGifts[GESCHAT]) -> € 1,100.00 | D57: =SUBTOTAL(109,TBL_FavorsAndGifts[WERKELIJK]) -> € 0.00 | E57: =TBL_FavorsAndGifts[[#Totals],[GESCHAT]]-TBL_FavorsAndGifts[[#Totals],[WERKELIJK]] -> € 1,100.00
B60: CEREMONIE | C60: GESCHAT | D60: WERKELIJK | E60: VERSCHIL
B61: Locatiekosten | C61: € 500.00 | E61: =IF(OR(TBL_Ceremony[[#This Row],[GESCHAT]]="",TBL_Ceremony[[#This Row],[WERKELIJK]]=""),"",TBL_Ceremony[[#This Row],[GESCHAT]]-TBL_Ceremony[[#This Row],[WERKELIJK]]) -> 
B62: Kosten trouwambtenaar of donatie aan kerk | C62: € 200.00 | E62: =IF(OR(TBL_Ceremony[[#This Row],[GESCHAT]]="",TBL_Ceremony[[#This Row],[WERKELIJK]]=""),"",TBL_Ceremony[[#This Row],[GESCHAT]]-TBL_Ceremony[[#This Row],[WERKELIJK]]) -> 
B63: Diverse kosten | C63: € 100.00 | E63: =IF(OR(TBL_Ceremony[[#This Row],[GESCHAT]]="",TBL_Ceremony[[#This Row],[WERKELIJK]]=""),"",TBL_Ceremony[[#This Row],[GESCHAT]]-TBL_Ceremony[[#This Row],[WERKELIJK]]) -> 
B64: TOTAAL CEREMONIE | C64: =SUBTOTAL(109,TBL_Ceremony[GESCHAT]) -> € 800.00 | D64: =SUBTOTAL(109,TBL_Ceremony[WERKELIJK]) -> € 0.00 | E64: =TBL_Ceremony[[#Totals],[GESCHAT]]-TBL_Ceremony[[#Totals],[WERKELIJK]] -> € 800.00
B67: KAARTEN E.D. | C67: GESCHAT | D67: WERKELIJK | E67: VERSCHIL
B68: Uitnodigingskaarten | C68: € 50.00 | E68: =IF(OR(TBL_Stationery[[#This Row],[GESCHAT]]="",TBL_Stationery[[#This Row],[WERKELIJK]]=""),"",TBL_Stationery[[#This Row],[GESCHAT]]-TBL_Stationery[[#This Row],[WERKELIJK]]) -> 
B69: Uitnodigingen en aanmeldingen | C69: € 100.00 | E69: =IF(OR(TBL_Stationery[[#This Row],[GESCHAT]]="",TBL_Stationery[[#This Row],[WERKELIJK]]=""),"",TBL_Stationery[[#This Row],[GESCHAT]]-TBL_Stationery[[#This Row],[WERKELIJK]]) -> 
B70: Programma's | C70: € 50.00 | E70: =IF(OR(TBL_Stationery[[#This Row],[GESCHAT]]="",TBL_Stationery[[#This Row],[WERKELIJK]]=""),"",TBL_Stationery[[#This Row],[GESCHAT]]-TBL_Stationery[[#This Row],[WERKELIJK]]) -> 
B71: Plaatskaarten | C71: € 50.00 | E71: =IF(OR(TBL_Stationery[[#This Row],[GESCHAT]]="",TBL_Stationery[[#This Row],[WERKELIJK]]=""),"",TBL_Stationery[[#This Row],[GESCHAT]]-TBL_Stationery[[#This Row],[WERKELIJK]]) -> 
B72: Menukaarten | C72: € 50.00 | E72: =IF(OR(TBL_Stationery[[#This Row],[GESCHAT]]="",TBL_Stationery[[#This Row],[WERKELIJK]]=""),"",TBL_Stationery[[#This Row],[GESCHAT]]-TBL_Stationery[[#This Row],[WERKELIJK]]) -> 
B73: Bedankbriefjes | C73: € 50.00 | E73: =IF(OR(TBL_Stationery[[#This Row],[GESCHAT]]="",TBL_Stationery[[#This Row],[WERKELIJK]]=""),"",TBL_Stationery[[#This Row],[GESCHAT]]-TBL_Stationery[[#This Row],[WERKELIJK]]) -> 
B74: Portokosten | C74: € 50.00 | E74: =IF(OR(TBL_Stationery[[#This Row],[GESCHAT]]="",TBL_Stationery[[#This Row],[WERKELIJK]]=""),"",TBL_Stationery[[#This Row],[GESCHAT]]-TBL_Stationery[[#This Row],[WERKELIJK]]) -> 
B75: Diverse kosten | C75: € 100.00 | E75: =IF(OR(TBL_Stationery[[#This Row],[GESCHAT]]="",TBL_Stationery[[#This Row],[WERKELIJK]]=""),"",TBL_Stationery[[#This Row],[GESCHAT]]-TBL_Stationery[[#This Row],[WERKELIJK]]) -> 
B76: TOTAAL KAARTEN E.D. | C76: =SUBTOTAL(109,TBL_Stationery[GESCHAT]) -> € 500.00 | D76: =SUBTOTAL(109,TBL_Stationery[WERKELIJK]) -> € 0.00 | E76: =TBL_Stationery[[#Totals],[GESCHAT]]-TBL_Stationery[[#Totals],[WERKELIJK]] -> € 500.00
B79: TROUWRINGEN | C79: GESCHAT | D79: WERKELIJK | E79: VERSCHIL
B80: Trouwringen | C80: € 1,000.00 | E80: =IF(OR(TBL_WeddingRings[[#This Row],[GESCHAT]]="",TBL_WeddingRings[[#This Row],[WERKELIJK]]=""),"",TBL_WeddingRings[[#This Row],[GESCHAT]]-TBL_WeddingRings[[#This Row],[WERKELIJK]]) -> 
B81: Ring-toebehoren | C81: € 100.00 | E81: =IF(OR(TBL_WeddingRings[[#This Row],[GESCHAT]]="",TBL_WeddingRings[[#This Row],[WERKELIJK]]=""),"",TBL_WeddingRings[[#This Row],[GESCHAT]]-TBL_WeddingRings[[#This Row],[WERKELIJK]]) -> 
B82: TOTAAL TROUWRINGEN | C82: =SUBTOTAL(109,TBL_WeddingRings[GESCHAT]) -> € 1,100.00 | D82: =SUBTOTAL(109,TBL_WeddingRings[WERKELIJK]) -> € 0.00 | E82: =TBL_WeddingRings[[#Totals],[GESCHAT]]-TBL_WeddingRings[[#Totals],[WERKELIJK]] -> € 1,100.00
B85: VERVOER | C85: GESCHAT | D85: WERKELIJK | E85: VERSCHIL
B86: Autohuur | C86: € 100.00 | E86: =IF(OR(TBL_Transportation[[#This Row],[GESCHAT]]="",TBL_Transportation[[#This Row],[WERKELIJK]]=""),"",TBL_Transportation[[#This Row],[GESCHAT]]-TBL_Transportation[[#This Row],[WERKELIJK]]) -> 
B87: Autohuur gasten | C87: € 100.00 | E87: =IF(OR(TBL_Transportation[[#This Row],[GESCHAT]]="",TBL_Transportation[[#This Row],[WERKELIJK]]=""),"",TBL_Transportation[[#This Row],[GESCHAT]]-TBL_Transportation[[#This Row],[WERKELIJK]]) -> 
B88: Vervoer voor gasten die van ver komen | C88: € 100.00 | E88: =IF(OR(TBL_Transportation[[#This Row],[GESCHAT]]="",TBL_Transportation[[#This Row],[WERKELIJK]]=""),"",TBL_Transportation[[#This Row],[GESCHAT]]-TBL_Transportation[[#This Row],[WERKELIJK]]) -> 
B89: Parkeerservice | C89: € 50.00 | E89: =IF(OR(TBL_Transportation[[#This Row],[GESCHAT]]="",TBL_Transportation[[#This Row],[WERKELIJK]]=""),"",TBL_Transportation[[#This Row],[GESCHAT]]-TBL_Transportation[[#This Row],[WERKELIJK]]) -> 
B90: Diverse kosten | C90: € 100.00 | E90: =IF(OR(TBL_Transportation[[#This Row],[GESCHAT]]="",TBL_Transportation[[#This Row],[WERKELIJK]]=""),"",TBL_Transportation[[#This Row],[GESCHAT]]-TBL_Transportation[[#This Row],[WERKELIJK]]) -> 
B91: TOTAAL VERVOER | C91: =SUBTOTAL(109,TBL_Transportation[GESCHAT]) -> € 450.00 | D91: =SUBTOTAL(109,TBL_Transportation[WERKELIJK]) -> € 0.00 | E91: =TBL_Transportation[[#Totals],[GESCHAT]]-TBL_Transportation[[#Totals],[WERKELIJK]] -> € 450.00
